bitfinex-derivatives/quotes_BTCF0:USTF0_20250823
["timestamp","ask_amount","ask_price","bid_price","bid_amount"]
[1755959906593,1.79794171,114940.0,114930.0,0.13149766]
[1755959906888,1.80394171,114940.0,114930.0,0.13149766]
[1755959907093,1.312821,114940.0,114930.0,0.13149766]
[1755959907291,1.80394171,114940.0,114930.0,0.13149766]
[1755959908288,1.312821,114940.0,114930.0,0.13149766]
[1755959908597,1.80394171,114940.0,114930.0,0.13149766]
[1755959909098,1.312821,114940.0,114930.0,0.13149766]
[1755959909284,1.312821,114940.0,114930.0,0.11690766]
[1755959909489,1.80394171,114940.0,114930.0,0.11690766]
[1755959909799,1.80394171,114940.0,114930.0,0.1033]
[1755959909997,1.80394171,114940.0,114930.0,0.11690752]
[1755959910498,1.312821,114940.0,114930.0,0.11690752]
[1755959910697,1.80394171,114940.0,114930.0,0.09717752]
[1755959910894,1.312821,114940.0,114930.0,0.13181752]
[1755959911096,1.80394171,114940.0,114930.0,0.13181752]
[1755959911593,1.80394171,114940.0,114930.0,0.11777752]
[1755959911984,1.80394171,114940.0,114930.0,0.08313752]
[1755959912196,1.80394171,114940.0,114930.0,0.08313757]
[1755959912398,1.80394171,114940.0,114930.0,0.03619757]
[1755959913498,1.80394171,114940.0,114930.0,0.02259]
[1755959914301,1.312821,114940.0,114930.0,0.02259]
[1755959914498,1.80394171,114940.0,114930.0,0.02259]
[1755959914894,1.80394171,114940.0,114930.0,0.089]
[1755959915393,1.80394171,114940.0,114930.0,0.05436]
[1755959916796,1.312821,114940.0,114930.0,0.05436]
[1755959916996,1.80394171,114940.0,114930.0,0.05436]
[1755959917496,1.80394171,114940.0,114930.0,0.02259]
[1755959918005,0.1123185,114930.0,114920.0,0.02445]
[1755959918301,0.97861829,114930.0,114920.0,0.02445]
[1755959918997,1.46981808,114930.0,114920.0,0.02445]
[1755959919198,1.46981808,114930.0,114910.0,0.03177]
[1755959919199,0.1508761,114920.0,114910.0,0.03177]
[1755959919396,2.32035568,114920.0,114910.0,0.04537981]
[1755959919600,1.3379561,114920.0,114910.0,0.14537981]
[1755959919903,1.82815589,114920.0,114910.0,0.20939981]
[1755959920305,1.82817559,114920.0,114910.0,0.19579]
[1755959921100,1.82817559,114920.0,114910.0,0.22024]
[1755959921296,1.3369561,114920.0,114910.0,0.22024]
[1755959921501,1.83711667,114920.0,114910.0,0.22024]
[1755959921898,1.83811667,114920.0,114910.0,0.22124]
[1755959922096,1.83811667,114920.0,114910.0,0.47124]
[1755959922303,1.34689718,114920.0,114910.0,0.47124]
[1755959922711,1.34789718,114920.0,114910.0,0.47124]
[1755959927112,1.34789718,114920.0,114910.0,0.48893388]
[1755959927415,1.32567718,114920.0,114910.0,0.23893388]
[1755959927804,1.34945718,114920.0,114910.0,0.23893388]
[1755959929314,1.84067667,114920.0,114910.0,0.23893388]
[1755959932315,1.34945718,114920.0,114910.0,0.23893388]
[1755959932509,1.84067667,114920.0,114910.0,0.23893388]
[1755959933517,1.84067667,114920.0,114910.0,0.17491388]
[1755959933915,1.84067667,114920.0,114910.0,0.20955388]
[1755959934114,1.84067667,114920.0,114910.0,0.22359388]
[1755959934821,1.84067667,114920.0,114910.0,0.17126]
[1755959935011,1.84067667,114920.0,114910.0,0.2059]
[1755959935212,1.34945718,114920.0,114910.0,0.2059]
[1755959935417,1.84067667,114920.0,114910.0,0.2059]
[1755959935609,1.84067667,114920.0,114910.0,0.15722]
[1755959936014,1.34945718,114920.0,114910.0,0.15722]
[1755959936321,1.34945718,114920.0,114910.0,0.19186]
[1755959936620,1.34945718,114920.0,114910.0,0.15722]
[1755959936813,1.84067667,114920.0,114910.0,0.15722]
[1755959937421,1.84067667,114920.0,114910.0,0.19186]
[1755959939921,1.84067667,114920.0,114910.0,0.15722]
[1755959940717,1.84067667,114920.0,114910.0,0.101]
[1755959942328,2.33195406,114920.0,114910.0,0.101]
[1755959943613,2.58195406,114920.0,114910.0,0.101]
[1755959943816,2.58275406,114920.0,114910.0,0.101]
[1755959944023,0.0870613,114900.0,114890.0,0.04797]
[1755959944322,2.13218974,114900.0,114890.0,0.07106]
[1755959944522,2.13218974,114900.0,114890.0,0.10515]
[1755959944726,1.6409413,114900.0,114890.0,0.12045]
[1755959945027,2.13218974,114900.0,114890.0,0.12045]
[1755959945622,1.6419413,114900.0,114890.0,0.08636]
[1755959945814,2.13318974,114900.0,114890.0,0.12045]
[1755959946014,2.13418974,114900.0,114890.0,0.12245]
[1755959946623,2.13518974,114900.0,114890.0,0.12145]
[1755959947533,2.13518974,114900.0,114890.0,0.08736]
[1755959947823,2.13518974,114900.0,114890.0,0.12145]
[1755959948423,2.13518974,114900.0,114890.0,0.02525]
[1755959948729,1.6439413,114900.0,114890.0,0.05809]
[1755959949023,2.13518974,114900.0,114890.0,0.05809]
[1755959949325,2.13518974,114900.0,114890.0,0.09218]
[1755959950232,1.6439413,114900.0,114890.0,0.09218]
[1755959950433,1.6439413,114900.0,114890.0,0.61269844]
[1755959950630,2.13518974,114900.0,114890.0,0.61269844]
[1755959951229,2.13518974,114900.0,114890.0,0.12145]
[1755959951431,1.6439413,114900.0,114890.0,0.12145]
[1755959951638,2.13518974,114900.0,114890.0,0.12145]
[1755959953435,2.13518974,114900.0,114890.0,0.13924217]
[1755959953637,1.6439413,114900.0,114890.0,0.13924217]
[1755959953938,1.6439413,114900.0,114890.0,0.63049061]
[1755959954121,2.13518974,114900.0,114890.0,0.70872424]
[1755959954323,2.13518974,114900.0,114890.0,0.63049061]
[1755959954523,1.6500213,114900.0,114890.0,0.98049061]
[1755959954735,1.6500213,114900.0,114890.0,0.5674758]
[1755959955036,1.6500213,114900.0,114890.0,1.05872424]
[1755959955233,1.6500213,114900.0,114890.0,0.4674758]
[1755959955436,2.14126974,114900.0,114890.0,0.5674758]
[1755959955632,2.14126974,114900.0,114890.0,1.05872424]
[1755959955839,2.14126974,114900.0,114890.0,0.1463258]
[1755959956139,1.6500213,114900.0,114890.0,0.05279217]
[1755959956329,2.14139232,114900.0,114890.0,0.05279217]
[1755959957029,2.14139232,114900.0,114890.0,0.04304217]
[1755959957432,2.14139232,114900.0,114890.0,0.01879217]
[1755959957928,2.39139232,114900.0,114890.0,0.01879217]
[1755959958122,2.39139232,114900.0,114890.0,0.0970258]
[1755959958938,2.39139232,114900.0,114890.0,0.01879217]
[1755959960541,1.9000213,114900.0,114890.0,0.01879217]
[1755959960934,2.39139232,114900.0,114890.0,0.04304217]
[1755959961940,2.39139232,114900.0,114890.0,0.01879217]
[1755959962238,2.39139232,114900.0,114890.0,0.001]
[1755959963232,2.14139232,114900.0,114890.0,0.001]
[1755959965453,1.9000213,114900.0,114890.0,0.001]
[1755959965631,2.39139232,114900.0,114890.0,0.001]
[1755959968632,2.39139232,114900.0,114890.0,0.02528]
[1755959969034,1.9000213,114900.0,114890.0,0.04305275]
[1755959969349,2.39139232,114900.0,114890.0,0.04305275]
[1755959969842,2.14139232,114900.0,114890.0,0.07446275]
[1755959970036,2.14139232,114900.0,114890.0,0.10865275]
[1755959970241,2.14427232,114900.0,114890.0,0.13899275]
[1755959971341,2.14427232,114900.0,114890.0,0.05275275]
[1755959971545,2.14427232,114900.0,114890.0,0.04305275]
[1755959971843,1.6529013,114900.0,114890.0,0.04305275]
[1755959972235,2.14427232,114900.0,114890.0,0.04305275]
[1755959972541,2.14427232,114900.0,114890.0,0.07446275]
[1755959973840,2.14427232,114900.0,114890.0,0.04305275]
[1755959974040,2.14427232,114900.0,114890.0,0.01877275]
[1755959974339,2.14427232,114900.0,114890.0,0.04305275]
[1755959976649,1.6529013,114900.0,114890.0,0.04305275]
[1755959976854,2.14427232,114900.0,114890.0,0.04305275]
[1755959977346,2.14427232,114900.0,114890.0,0.01877275]
[1755959977542,2.14427232,114900.0,114890.0,0.05275275]
[1755959979350,2.14427232,114900.0,114890.0,0.04305275]
[1755959980151,2.14427232,114900.0,114890.0,0.001]
[1755959981046,3.79955232,114900.0,114890.0,0.001]
[1755959981345,3.79955232,114900.0,114890.0,0.01461406]
[1755959981740,3.79855232,114900.0,114890.0,0.01461406]
[1755959981942,3.94495232,114900.0,114890.0,0.01461406]
[1755959982448,3.94495232,114900.0,114890.0,0.001]
[1755959985947,3.94495232,114900.0,114890.0,0.02528]
[1755959986943,3.80055232,114900.0,114890.0,0.02528]
[1755959988856,3.79847232,114900.0,114890.0,0.05669]
[1755959989152,3.79847232,114900.0,114890.0,0.07108]
[1755959989356,3.79847232,114900.0,114890.0,0.05669]
[1755959989746,2.95931232,114900.0,114890.0,0.10527]
[1755959990048,3.79739232,114900.0,114890.0,0.10527]
[1755959990757,3.79739232,114900.0,114890.0,0.09088]
[1755959991256,3.79739232,114900.0,114890.0,0.05669]
[1755959992649,3.79739232,114900.0,114890.0,0.03498]
[1755959992959,3.79739232,114900.0,114890.0,0.02528]
[1755959994257,3.79739232,114900.0,114890.0,0.001]
[1755959995453,3.79739232,114900.0,114890.0,0.02528]
[1755959997161,3.94179232,114900.0,114890.0,0.02528]
[1755959997763,3.4504213,114900.0,114890.0,0.04699]
[1755959997965,3.94179232,114900.0,114890.0,0.09135]
[1755959998157,3.93891232,114900.0,114890.0,0.05666]
[1755959998351,3.93903899,114900.0,114890.0,0.05666]
[1755959999765,3.93903899,114900.0,114890.0,0.03495]
[1755960001269,3.93903899,114900.0,114890.0,0.05632]
[1755960001666,3.93903899,114900.0,114890.0,0.03495]
[1755960003858,3.79475899,114900.0,114890.0,0.37161]
[1755960004262,3.3032613,114900.0,114890.0,0.37161]
[1755960004657,3.79459698,114900.0,114890.0,0.37161]
[1755960006662,3.79459698,114900.0,114890.0,0.30121]
[1755960007168,3.79459698,114900.0,114890.0,0.32258]
[1755960007364,3.79459698,114900.0,114890.0,0.35727]
[1755960007870,3.79459698,114900.0,114890.0,0.32258]
[1755960008074,3.79459698,114900.0,114890.0,0.35727]
[1755960009273,3.79459698,114900.0,114890.0,0.37161]
[1755960013073,0.0870688,114890.0,114880.0,0.07042085]
[1755960013280,1.77188448,114890.0,114880.0,0.07042085]
[1755960013578,1.77188448,114890.0,114880.0,0.02413]
[1755960015584,1.77288448,114890.0,114880.0,0.02513]
[1755960015979,1.77388448,114890.0,114880.0,0.02513]
[1755960016786,1.77388448,114890.0,114880.0,0.05617]
[1755960017081,1.77372448,114890.0,114880.0,0.12146]
[1755960017982,1.84194248,114890.0,114880.0,0.08677]
[1755960018878,1.3506068,114890.0,114880.0,0.07243]
[1755960019087,1.84194248,114890.0,114880.0,0.05617]
[1755960019283,1.84194248,114890.0,114880.0,0.0348]
[1755960021778,1.84194248,114890.0,114880.0,0.02513]
[1755960022777,1.84194248,114890.0,114880.0,0.05617]
[1755960022979,1.84194248,114890.0,114880.0,0.12146]
[1755960026495,1.84194248,114890.0,114880.0,0.08677]
[1755960026693,1.84194248,114890.0,114880.0,0.12146]
[1755960027585,1.00942248,114890.0,114880.0,0.12146]
[1755960027882,1.84134248,114890.0,114880.0,0.12146]
[1755960030394,1.84134248,114890.0,114880.0,0.07243]
[1755960030696,1.84134248,114890.0,114880.0,0.02513]
[1755960031090,1.84134248,114890.0,114880.0,0.001]
[1755960032294,1.84134248,114890.0,114880.0,0.02569]
[1755960033297,1.3500068,114890.0,114880.0,0.02569]
[1755960033494,1.84134248,114890.0,114880.0,0.02569]
[1755960036191,1.84134248,114890.0,114880.0,0.001]
[1755960036392,0.087084,114870.0,114860.0,0.02469]
[1755960036699,2.13205968,114870.0,114860.0,0.02469]
[1755960037092,1.640724,114870.0,114860.0,0.04674]
[1755960037294,2.13205968,114870.0,114860.0,0.04674]
[1755960037494,2.13205968,114870.0,114860.0,0.0566]
[1755960038192,0.0870916,114860.0,114850.0,0.04204017]
[1755960038394,0.93922728,114860.0,114850.0,0.13736017]
[1755960039299,0.93622728,114860.0,114850.0,0.13736017]
[1755960039498,0.93722728,114860.0,114850.0,0.13736017]
[1755960039896,0.93822728,114860.0,114850.0,0.14236017]
[1755960040596,0.93822728,114860.0,114850.0,0.13736017]
[1755960040795,0.93822728,114860.0,114850.0,0.14036017]
[1755960040996,0.93822728,114860.0,114850.0,0.10677017]
[1755960041196,0.93822728,114860.0,114850.0,0.09198017]
[1755960041899,0.93822728,114860.0,114850.0,0.07695017]
[1755960042098,0.93822728,114860.0,114850.0,0.05490017]
[1755960043589,0.93822728,114860.0,114850.0,0.07695017]
[1755960043789,0.4468916,114860.0,114850.0,0.07695017]
[1755960043997,0.93822728,114860.0,114850.0,0.07695017]
[1755960044194,0.4468916,114860.0,114850.0,0.03755]
[1755960044399,0.46609174,114860.0,114850.0,0.03755]
[1755960044699,0.96620176,114860.0,114850.0,0.03755]
[1755960045001,0.96620176,114860.0,114850.0,0.02769]
[1755960045194,0.47486608,114860.0,114850.0,0.02769]
[1755960045403,0.96620176,114860.0,114850.0,0.02769]
[1755960047205,0.96620176,114860.0,114850.0,0.10595096]
[1755960047405,0.47486608,114860.0,114850.0,0.02769]
[1755960047594,0.96620176,114860.0,114850.0,0.02769]
[1755960048403,0.0870992,114850.0,114840.0,0.07826096]
[1755960048700,0.0871143,114830.0,114820.0,0.07035975]
[1755960048905,1.6547243,114830.0,114820.0,0.11074897]
[1755960049105,2.14605998,114830.0,114820.0,0.11074897]
[1755960049399,2.21329272,114830.0,114820.0,0.11074897]
[1755960049794,1.72195704,114830.0,114820.0,0.11074897]
[1755960049989,2.21529272,114830.0,114820.0,0.11274897]
[1755960050193,2.21529272,114830.0,114820.0,0.07915896]
[1755960050394,2.21529272,114830.0,114820.0,0.04933896]
[1755960051398,2.21529272,114830.0,114820.0,0.08409904]
[1755960051603,2.21529272,114830.0,114820.0,0.002]
[1755960051797,2.46529272,114830.0,114820.0,0.002]
[1755960052107,0.1235771,114800.0,114790.0,0.13733303]
[1755960052308,0.9606571,114800.0,114790.0,0.23733303]
[1755960052603,1.32928815,114800.0,114790.0,0.33733303]
[1755960052793,1.32928815,114800.0,114790.0,0.23733303]
[1755960053102,1.32828815,114800.0,114790.0,0.23733303]
[1755960053302,1.32928815,114800.0,114790.0,0.13733303]
[1755960053500,1.35726815,114800.0,114790.0,0.06733303]
[1755960053701,1.35826815,114800.0,114790.0,0.09038303]
[1755960054809,1.35826815,114800.0,114790.0,0.19038303]
[1755960055504,1.35826815,114800.0,114790.0,0.21507303]
[1755960060406,1.02966815,114800.0,114790.0,0.21507303]
[1755960060906,0.92580105,114800.0,114790.0,0.40221773]
[1755960061105,1.03498815,114800.0,114790.0,0.40221773]
[1755960061407,1.39578815,114800.0,114790.0,0.31507303]
[1755960061711,1.03498815,114800.0,114790.0,0.31507303]
[1755960061912,1.39578815,114800.0,114790.0,0.31507303]
[1755960062510,1.39578815,114800.0,114790.0,0.40221773]
[1755960062712,1.39578815,114800.0,114790.0,0.31507303]
[1755960062906,1.39578815,114800.0,114790.0,0.18148303]
[1755960063106,0.55538815,114800.0,114790.0,0.21408303]
[1755960063412,1.39566815,114800.0,114790.0,0.21408303]
[1755960064412,1.39566815,114800.0,114790.0,0.12697303]
[1755960064803,1.39566815,114800.0,114790.0,0.10492303]
[1755960065000,0.0871523,114780.0,114770.0,0.07165]
[1755960065206,1.77916798,114780.0,114770.0,0.21874]
[1755960065610,1.2878323,114780.0,114770.0,0.21874]
[1755960066309,1.2888323,114780.0,114770.0,0.21874]
[1755960066812,1.2928323,114780.0,114770.0,0.21874]
[1755960067407,0.95128532,114780.0,114770.0,0.21874]
[1755960067707,0.47220532,114780.0,114770.0,0.4058999]
[1755960067908,0.95112532,114780.0,114770.0,0.4058999]
[1755960068310,0.95112532,114780.0,114770.0,0.31874]
[1755960068712,0.95112532,114780.0,114770.0,0.4058999]
[1755960069216,0.86397302,114780.0,114770.0,0.4058999]
[1755960069512,0.84488,114780.0,114770.0,0.6558999]
[1755960069708,0.84488,114780.0,114770.0,1.0166999]
[1755960070413,0.005,114780.0,114770.0,1.0166999]
[1755960070607,0.85208,114780.0,114770.0,1.0166999]
[1755960071008,0.85208,114780.0,114770.0,1.50803558]
[1755960071206,0.005,114780.0,114770.0,1.60883558]
[1755960072115,0.005,114780.0,114770.0,1.60803558]
[1755960072718,0.005,114780.0,114770.0,1.0166999]
[1755960074124,0.005,114780.0,114770.0,1.1166999]
[1755960078227,0.005,114780.0,114770.0,1.0166999]
[1755960078723,0.0921523,114780.0,114770.0,0.99465003]
[1755960078919,0.4529523,114780.0,114770.0,0.73385003]
[1755960079117,0.4529523,114780.0,114770.0,0.6558999]
[1755960079319,0.4529523,114780.0,114770.0,0.31874]
[1755960079924,0.0921523,114780.0,114770.0,0.4058999]
[1755960080121,0.0921523,114780.0,114770.0,0.21874]
[1755960080122,0.94428798,114780.0,114770.0,0.21874]
[1755960080428,0.94428798,114780.0,114770.0,0.18614]
[1755960080429,1.19428798,114780.0,114770.0,0.18614]
[1755960080628,1.19428798,114780.0,114770.0,0.21874]
[1755960080828,0.7029523,114780.0,114770.0,0.21874]
[1755960082424,0.7029523,114780.0,114770.0,0.3059]
[1755960082425,0.007,114780.0,114770.0,0.3059]
[1755960083121,0.0941524,114780.0,114770.0,0.21874]
[1755960083931,0.4549524,114780.0,114770.0,0.21874]
[1755960087526,0.4549524,114780.0,114770.0,0.21863]
[1755960090128,0.4549525,114780.0,114770.0,0.21863]
[1755960090325,0.4549525,114780.0,114770.0,0.17165]
[1755960091127,0.4549525,114780.0,114770.0,0.2182]
[1755960092036,0.4559525,114780.0,114770.0,0.2182]
[1755960092741,0.4559525,114780.0,114770.0,0.15649]
[1755960092927,0.4559525,114780.0,114770.0,0.13388]
[1755960093235,0.94728818,114780.0,114770.0,0.13388]
[1755960093436,0.94728818,114780.0,114770.0,0.15515]
[1755960093740,0.94728818,114780.0,114770.0,0.21685]
[1755960094335,0.4559525,114780.0,114770.0,0.21685]
[1755960094536,0.94728818,114780.0,114770.0,0.21685]
[1755960095527,1.23596,114780.0,114770.0,0.21685]
[1755960095727,1.3231125,114780.0,114770.0,0.21685]
[1755960095927,1.3227925,114780.0,114770.0,0.21685]
[1755960096626,1.3227925,114780.0,114770.0,0.1703]
[1755960096822,1.3230325,114780.0,114770.0,0.21685]
[1755960100046,1.3235125,114780.0,114770.0,0.21685]
[1755960101235,0.008,114780.0,114770.0,1.50694598]
[1755960101441,0.87484,114780.0,114770.0,1.50694598]
[1755960101637,0.87484,114780.0,114770.0,1.0156103]
[1755960101839,0.87484,114780.0,114770.0,1.09392999]
[1755960102026,0.008,114780.0,114770.0,1.09392999]
[1755960102342,0.87508,114780.0,114770.0,1.09392999]
[1755960102641,0.87508,114780.0,114770.0,1.09312999]
[1755960104245,0.008,114780.0,114770.0,1.09312999]
[1755960104628,0.008,114780.0,114770.0,1.68528014]
[1755960106335,0.008,114780.0,114770.0,1.60694598]
[1755960106729,0.36963105,114800.0,114790.0,0.2021852]
[1755960106935,0.57846348,114820.0,114790.0,0.2021852]
[1755960106936,0.3608,114820.0,114810.0,0.16968]
[1755960107128,0.4559075,114840.0,114830.0,0.05527]
[1755960107434,0.39043732,114840.0,114830.0,0.2021548]
[1755960107634,1.25679732,114840.0,114830.0,0.11504]
[1755960107937,1.25675732,114840.0,114830.0,0.11504]
[1755960108128,1.34386462,114840.0,114830.0,0.08255]
[1755960108333,2.0852003,114840.0,114830.0,0.02278]
[1755960108529,2.0860003,114840.0,114830.0,0.02278]
[1755960108839,0.1179224,114820.0,114810.0,0.10108587]
[1755960109029,1.83581808,114820.0,114810.0,0.20108587]
[1755960109234,2.07481808,114820.0,114810.0,0.14031587]
[1755960109443,2.43561808,114820.0,114810.0,0.14031587]
[1755960109828,2.43461808,114820.0,114810.0,0.14031587]
[1755960110733,2.43361808,114820.0,114810.0,0.14031587]
[1755960111432,2.43761808,114820.0,114810.0,0.14131587]
[1755960111633,2.44661808,114820.0,114810.0,0.14231587]
[1755960112028,2.50783591,114820.0,114810.0,0.14131587]
[1755960112233,2.51983591,114820.0,114810.0,0.14231587]
[1755960113436,2.02850023,114820.0,114810.0,0.14231587]
[1755960113637,2.51983591,114820.0,114810.0,0.14231587]
[1755960114038,2.02850023,114820.0,114810.0,0.14231587]
[1755960114237,2.51983591,114820.0,114810.0,0.14231587]
[1755960117843,2.02850023,114820.0,114810.0,0.14231587]
[1755960118043,2.51983591,114820.0,114810.0,0.14231587]
[1755960118936,2.26983591,114820.0,114810.0,0.14231587]
[1755960119551,1.40407591,114820.0,114810.0,0.14231587]
[1755960119750,2.26655591,114820.0,114810.0,0.14231587]
[1755960120355,2.26651591,114820.0,114810.0,0.18861587]
[1755960120557,2.26651591,114820.0,114810.0,0.23570587]
[1755960121550,2.26651591,114820.0,114810.0,0.12478]
[1755960121752,2.28620248,114820.0,114810.0,0.12478]
[1755960124764,1.7948668,114820.0,114810.0,0.12478]
[1755960124958,2.28620248,114820.0,114810.0,0.12478]
[1755960129669,0.09901783,114820.0,114810.0,1.01712608]
[1755960129865,0.09901783,114820.0,114810.0,0.67675016]
[1755960129866,0.94421783,114820.0,114810.0,0.67675016]
[1755960130060,0.87392,114820.0,114810.0,0.75509057]
[1755960130967,0.9818428,114820.0,114810.0,0.56716017]
[1755960131175,1.90372243,114820.0,114810.0,0.31716017]
[1755960131667,1.90372243,114820.0,114810.0,0.19172976]
[1755960131970,1.90372243,114820.0,114810.0,0.17579976]
[1755960131971,1.04580243,114820.0,114810.0,0.17579976]
[1755960132170,1.90316243,114820.0,114810.0,0.23881976]
[1755960132664,1.41182675,114820.0,114810.0,0.23881976]
[1755960133668,1.90316243,114820.0,114810.0,0.20573976]
[1755960133870,1.90316243,114820.0,114810.0,0.23881976]
[1755960135177,1.41038675,114820.0,114810.0,0.32595036]
[1755960135875,1.41038675,114820.0,114810.0,0.23881976]
[1755960136376,1.90172243,114820.0,114810.0,0.15253976]
[1755960137676,1.41038675,114820.0,114810.0,0.15253976]
[1755960137976,1.90172243,114820.0,114810.0,0.23088017]
[1755960138167,1.41038675,114820.0,114810.0,0.15253976]
[1755960138373,1.90172243,114820.0,114810.0,0.15253976]
[1755960139676,1.90172243,114820.0,114810.0,0.14265976]
[1755960141582,1.90172243,114820.0,114810.0,0.22100017]
[1755960144482,1.41038675,114820.0,114810.0,0.22100017]
[1755960144683,1.90172243,114820.0,114810.0,0.25223448]
[1755960144888,1.90172243,114820.0,114810.0,0.26211448]
[1755960145376,1.90172243,114820.0,114810.0,0.34045243]
[1755960145576,1.90172243,114820.0,114810.0,0.23087771]
[1755960145976,1.90172243,114820.0,114810.0,0.28721771]
[1755960146176,1.90172243,114820.0,114810.0,0.30122771]
[1755960146774,0.55446675,114820.0,114810.0,0.31715771]
[1755960147085,1.89620243,114820.0,114810.0,0.31715771]
[1755960148380,2.14620243,114820.0,114810.0,0.22099771]
[1755960148588,2.14620243,114820.0,114810.0,0.14265976]
[1755960148781,2.14620243,114820.0,114810.0,0.11987976]
[1755960148987,2.14620243,114820.0,114810.0,0.14255976]
[1755960149188,2.14620243,114820.0,114810.0,0.22089771]
[1755960149486,1.65486675,114820.0,114810.0,0.22089771]
[1755960149784,2.14620243,114820.0,114810.0,0.14255976]
[1755960149989,1.89620243,114820.0,114810.0,0.17480976]
[1755960150188,1.89620243,114820.0,114810.0,0.26876771]
[1755960150390,1.89620243,114820.0,114810.0,0.31621771]
[1755960150581,1.89620243,114820.0,114810.0,0.23787976]
[1755960150782,1.89620243,114820.0,114810.0,0.31621771]
[1755960150982,1.89620243,114820.0,114810.0,0.23787976]
[1755960151889,1.40486675,114820.0,114810.0,0.23787976]
[1755960152074,1.89620243,114820.0,114810.0,0.31621771]
[1755960152991,1.89424243,114820.0,114810.0,0.31621771]
[1755960153185,1.89408243,114820.0,114810.0,0.31621771]
[1755960153887,1.04580243,114820.0,114810.0,0.31621771]
[1755960154087,1.89412243,114820.0,114810.0,0.31621771]
[1755960154294,0.55446675,114820.0,114810.0,0.40334871]
[1755960154489,1.89380243,114820.0,114810.0,0.40334871]
[1755960154788,1.89380243,114820.0,114810.0,0.31621771]
[1755960157687,1.89380243,114820.0,114810.0,0.23787976]
[1755960157884,1.04580243,114820.0,114810.0,0.23787976]
[1755960158085,1.89276243,114820.0,114810.0,0.23787976]
[1755960158390,1.91240472,114820.0,114810.0,0.19042976]
[1755960158589,1.06544472,114820.0,114810.0,0.19042976]
[1755960158791,1.91148472,114820.0,114810.0,0.20447976]
[1755960158989,1.06544472,114820.0,114810.0,0.23787976]
[1755960159289,1.91116472,114820.0,114810.0,0.23787976]
[1755960159601,1.91116472,114820.0,114810.0,0.31621771]
[1755960163492,1.41786904,114820.0,114810.0,0.31621771]
[1755960163797,1.90920472,114820.0,114810.0,0.31621771]
[1755960164992,1.90920472,114820.0,114810.0,0.26876771]
[1755960167405,1.90920472,114820.0,114810.0,0.22089771]
[1755960169901,1.90920472,114820.0,114810.0,0.20301795]
[1755960170098,2.15920472,114820.0,114810.0,0.002]
[1755960176907,0.0871321,114810.0,114800.0,0.02268]
[1755960177202,0.93926778,114810.0,114800.0,0.02268]
[1755960178402,0.94926778,114810.0,114800.0,0.02368]
[1755960179301,0.95326778,114810.0,114800.0,0.02368]
[1755960180104,0.95326778,114810.0,114800.0,0.001]
[1755960180405,0.0871397,114800.0,114790.0,0.12827934]
[1755960180609,0.93927538,114800.0,114790.0,0.12827934]
[1755960182009,0.95227538,114800.0,114790.0,0.12927934]
[1755960183307,0.95227538,114800.0,114790.0,0.09713934]
[1755960183915,0.95227538,114800.0,114790.0,0.08231934]
[1755960184422,0.95227538,114800.0,114790.0,0.11445934]
[1755960184605,0.4609397,114800.0,114790.0,0.11445934]
[1755960184914,0.95227538,114800.0,114790.0,0.08231934]
[1755960185307,0.4609397,114800.0,114790.0,0.08231934]
[1755960185606,0.95227538,114800.0,114790.0,0.11445934]
[1755960185811,0.4609397,114800.0,114790.0,0.12927934]
[1755960186119,0.95227538,114800.0,114790.0,0.12927934]
[1755960186416,0.95318345,114800.0,114790.0,0.12927934]
[1755960188414,0.4609397,114800.0,114790.0,0.12927934]
[1755960189110,0.4609397,114800.0,114790.0,0.21642704]
[1755960189314,1.2989397,114800.0,114790.0,0.21642704]
[1755960189715,1.2989397,114800.0,114790.0,0.29476499]
[1755960190114,1.21144,114800.0,114790.0,0.64556499]
[1755960190314,0.4609401,114800.0,114790.0,0.54556499]
[1755960190522,1.2981801,114800.0,114790.0,0.54556499]
[1755960190720,1.2981801,114800.0,114790.0,0.64556499]
[1755960191220,1.2981801,114800.0,114790.0,0.54556499]
[1755960192324,1.2981801,114800.0,114790.0,0.45761729]
[1755960192521,0.4609401,114800.0,114790.0,0.45761729]
[1755960192712,1.2973001,114800.0,114790.0,0.45761729]
[1755960195217,1.2973001,114800.0,114790.0,0.37927934]
[1755960195420,1.2973001,114800.0,114790.0,0.34713934]
[1755960195614,1.78952024,114800.0,114790.0,0.03528934]
[1755960196320,1.78952024,114800.0,114790.0,0.06639934]
[1755960197523,1.78952024,114800.0,114790.0,0.04450934]
[1755960199916,1.78952024,114800.0,114790.0,0.01156934]
[1755960199917,1.79032024,114800.0,114790.0,0.01156934]
[1755960200822,1.79032024,114800.0,114790.0,0.03528934]
[1755960201926,1.80938508,114800.0,114790.0,0.02472]
[1755960203717,1.80938508,114800.0,114790.0,0.001]
[1755960207525,1.80938508,114800.0,114790.0,0.02419]
[1755960209329,1.80858508,114800.0,114790.0,0.02419]
[1755960210624,1.80858508,114800.0,114790.0,0.11842]
[1755960211322,1.80858508,114800.0,114790.0,0.07189]
[1755960212125,1.80858508,114800.0,114790.0,0.07298713]
[1755960212921,1.80858508,114800.0,114790.0,0.05134713]
[1755960214327,2.30099694,114800.0,114790.0,0.05134713]
[1755960215723,2.30099694,114800.0,114790.0,0.08946713]
[1755960216022,2.30099694,114800.0,114790.0,0.13599713]
[1755960216225,2.30099694,114800.0,114790.0,0.12153713]
[1755960216426,2.30099694,114800.0,114790.0,0.08946713]
[1755960216637,2.30099694,114800.0,114790.0,0.07298713]
[1755960221127,0.97232094,114800.0,114790.0,0.10392713]
[1755960221333,1.80488094,114800.0,114790.0,0.13599713]
[1755960226133,1.31256494,114800.0,114790.0,0.13599713]
[1755960226434,1.80488094,114800.0,114790.0,0.13599713]
[1755960227735,1.31256494,114800.0,114790.0,0.13599713]
[1755960227933,1.80488094,114800.0,114790.0,0.13599713]
[1755960228130,1.7858161,114800.0,114790.0,0.13599713]
[1755960228534,1.2935001,114800.0,114790.0,0.13599713]
[1755960228739,1.7858161,114800.0,114790.0,0.13599713]
[1755960229331,1.2935001,114800.0,114790.0,0.13599713]
[1755960229535,1.7858161,114800.0,114790.0,0.13599713]
[1755960230837,1.7858161,114800.0,114790.0,0.21429511]
[1755960231034,1.2935001,114800.0,114790.0,0.21429511]
[1755960231428,1.7858161,114800.0,114790.0,0.21429511]
[1755960233341,1.2935001,114800.0,114790.0,0.21429511]
[1755960233536,1.7858161,114800.0,114790.0,0.13599713]
[1755960240345,1.2935001,114800.0,114790.0,0.13599713]
[1755960240545,1.7858161,114800.0,114790.0,0.79375831]
[1755960240841,1.7858161,114800.0,114790.0,0.12006511]
[1755960241244,2.2789321,114800.0,114790.0,0.07929798]
[1755960241539,2.29868313,114800.0,114790.0,0.001]
[1755960241942,2.29788313,114800.0,114790.0,0.001]
[1755960243646,1.31325113,114800.0,114790.0,0.001]
[1755960243838,2.29788313,114800.0,114790.0,0.001]